fUSD/lending_fUSD_20250401
["ID","MTS","AMOUNT","RATE_DAILY","PERIOD"]
[356979724,1743516657817,-500.0,0.00049863,120]
[356979725,1743516657826,-486.31452402,0.00049863,120]
[356979726,1743516657836,-500.0,0.00049863,120]
[356979727,1743516657846,-500.0,0.00049863,120]
[356979728,1743516657856,-500.0,0.00049863,120]
[356979729,1743516657865,-500.0,0.00049863,120]
[356979730,1743516657875,-500.0,0.00049863,120]
[356979731,1743516657885,-500.0,0.00049863,120]
[356979732,1743516657898,-500.0,0.00049863,120]
[356979733,1743516657908,-538.98553765,0.00049863,120]
[356979734,1743516657918,-523.12558745,0.00049863,120]
[356979735,1743516657928,-500.0,0.00049863,120]
[356979736,1743516657939,-500.0,0.00049863,120]
[356979737,1743516657950,-390.79214514,0.00049863,120]
[356979738,1743516657960,-497.42170741,0.00049863,120]
[356979739,1743516657971,-500.0,0.00049863,120]
[356979740,1743516657982,-559.52469626,0.00049863,120]
[356979741,1743516657992,-500.0,0.00049863,120]
[356979742,1743516658003,-500.0,0.00049863,120]
[356979743,1743516658013,-500.0,0.00049863,120]
[356979744,1743516658024,-500.0,0.00049863,120]
[356979745,1743516658034,-185.78755638,0.00049863,120]
[356979746,1743516658043,-500.0,0.00049863,120]
[356979747,1743516658054,-500.0,0.00049863,120]
[356979748,1743516658064,-500.0,0.00049863,120]
[356979749,1743516658074,-500.0,0.00049863,120]
[356979750,1743516658084,-500.0,0.00049863,120]
[356979751,1743516658094,-500.0,0.00049863,120]
[356979752,1743516658104,-500.0,0.00049863,120]
[356979753,1743516658113,-500.0,0.00049863,120]
[356979754,1743516658123,-280.39459491,0.00049863,120]
[356979755,1743516658133,-500.0,0.00049863,120]
[356979756,1743516658145,-156.68375868,0.00049863,120]
[356979757,1743516658154,-500.0,0.00049863,120]
[356979758,1743516658164,-500.0,0.00049863,120]
[356979759,1743516658173,-523.25885805,0.00049863,120]
[356979760,1743516658183,-500.0,0.00049863,120]
[356979761,1743516658192,-512.91075126,0.00049863,120]
[356979762,1743516658202,-500.0,0.00049863,120]
[356979763,1743516658211,-500.0,0.00049863,120]
[356979764,1743516658220,-500.0,0.00049863,120]
[356979765,1743516658230,-500.0,0.00049863,120]
[356979766,1743516658239,-500.0,0.00049863,120]
[356979767,1743516658249,-500.0,0.00049863,120]
[356979768,1743516658259,-500.0,0.00049863,120]
[356979769,1743516658268,-500.0,0.00049863,120]
[356979770,1743516658277,-521.52135037,0.00049863,120]
[356979771,1743516658287,-500.0,0.00049863,120]
[356979772,1743516658298,-431.26005912,0.00049863,120]
[356979773,1743516658308,-500.0,0.00049863,120]
[356979774,1743516658318,-500.0,0.00049863,120]
[356979775,1743516658328,-1636.33,0.00049863,12]
[356979776,1743516658338,-500.0,0.00049863,120]
[356979777,1743516658348,-500.0,0.00049863,120]
[356979778,1743516658358,-500.0,0.00049863,120]
[356979779,1743516658368,-253.99,0.00049863,120]
[356979780,1743516658378,-210.64,0.00049863,120]
[356979781,1743516658388,-2160.74,0.00049863,30]
[356979782,1743516658399,-500.0,0.00049863,120]
[356979783,1743516658409,-500.0,0.00049863,120]
[356979784,1743516658418,-500.0,0.00049863,120]
[356979785,1743516658428,-613.54,0.00049863,120]
[356979786,1743516658438,-500.0,0.00049863,120]
[356979787,1743516658448,-500.0,0.00049863,120]
[356979788,1743516658458,-338.59233121,0.00049863,120]
[356979789,1743516658468,-500.0,0.00049863,120]
[356979790,1743516658479,-500.0,0.00049863,120]
[356979791,1743516658489,-500.0,0.00049863,120]
[356979792,1743516658499,-500.0,0.00049863,120]
[356979793,1743516658509,-500.0,0.00049863,120]
[356979794,1743516658518,-500.0,0.00049863,120]
[356979795,1743516658528,-500.0,0.00049863,120]
[356979796,1743516658537,-500.0,0.00049863,120]
[356979797,1743516658547,-500.0,0.00049863,120]
[356979798,1743516658557,-500.0,0.00049863,120]
[356979799,1743516658566,-500.0,0.00049863,120]
[356979800,1743516658576,-500.0,0.00049863,120]
[356979801,1743516658585,-500.0,0.00049863,120]
[356979802,1743516658594,-500.0,0.00049863,120]
[356979803,1743516658604,-500.0,0.00049863,120]
[356979804,1743516658614,-500.0,0.00049863,120]
[356979805,1743516658624,-500.0,0.00049863,120]
[356979806,1743516658634,-500.0,0.00049863,120]
[356979807,1743516658646,-527.04142262,0.00049863,120]
[356979808,1743516658655,-545.84806967,0.00049863,120]
[356979809,1743516658665,-500.0,0.00049863,120]
[356979810,1743516658674,-3452.64,0.00049863,120]
[356979811,1743516658684,-500.0,0.00049863,120]
[356979812,1743516658693,-500.0,0.00049863,120]
[356979813,1743516658703,-500.0,0.00049863,120]
[356979814,1743516658712,-500.0,0.00049863,120]
[356979815,1743516658721,-500.0,0.00049863,120]
[356979816,1743516658730,-500.0,0.00049863,120]
[356979817,1743516658741,-500.0,0.00049863,120]
[356979818,1743516658751,-500.0,0.00049863,120]
[356979819,1743516658760,-500.0,0.00049863,120]
[356979820,1743516658770,-500.0,0.00049863,120]
[356979821,1743516658780,-500.0,0.00049863,120]
[356979822,1743516658791,-500.0,0.00049863,120]
[356979823,1743516658801,-500.0,0.00049863,120]
[356979824,1743516658811,-500.0,0.00049863,120]
[356979825,1743516658824,-500.0,0.00049863,120]
[356979826,1743516658834,-500.0,0.00049863,120]
[356979827,1743516658843,-500.0,0.00049863,120]
[356979828,1743516658853,-500.0,0.00049863,120]
[356979829,1743516658864,-500.0,0.00049863,120]
[356979830,1743516658874,-261.20692029,0.00049863,120]
[356979831,1743516658997,-500.0,0.00049863,120]
[356979832,1743516659008,-500.0,0.00049863,120]
[356979833,1743516659017,-330.64,0.00049863,120]
[356979834,1743516659027,-500.0,0.00049863,120]
[356979835,1743516659036,-500.0,0.00049863,120]
[356979836,1743516659045,-500.0,0.00049863,7]
[356979837,1743516659055,-500.0,0.00049863,120]
[356979838,1743516659064,-500.0,0.00049863,120]
[356979839,1743516659074,-500.0,0.00049863,120]
[356979840,1743516659083,-500.0,0.00049863,120]
[356979841,1743516659092,-500.0,0.00049863,120]
[356979842,1743516659102,-500.0,0.00049863,120]
[356979843,1743516659112,-591.11461321,0.00049863,120]
[356979844,1743516659122,-500.0,0.00049863,120]
[356979845,1743516659131,-500.0,0.00049863,120]
[356979846,1743516659141,-500.0,0.00049863,120]
[356979847,1743516659153,-500.0,0.00049863,120]
[356979848,1743516659163,-500.0,0.00049863,120]
[356979849,1743516659175,-500.0,0.00049863,120]
[356979850,1743516659185,-500.0,0.00049863,120]
[356979851,1743516659195,-500.0,0.00049863,120]
[356979852,1743516659205,-500.0,0.00049863,120]
[356979853,1743516659215,-500.0,0.00049863,120]
[356979854,1743516659224,-500.0,0.00049863,120]
[356979855,1743516659234,-186.57080382,0.00049863,120]
[356979856,1743516659244,-500.0,0.00049863,120]
[356979857,1743516659254,-500.0,0.00049863,120]
[356979858,1743516659264,-500.0,0.00049863,120]
[356979859,1743516659274,-500.0,0.00049863,120]
[356979860,1743516659284,-500.0,0.00049863,120]
[356979861,1743516659295,-500.0,0.00049863,120]
[356979862,1743516659305,-500.0,0.00049863,120]
[356979863,1743516659315,-370.73793262,0.00049863,120]
[356979864,1743516659324,-500.0,0.00049863,120]
[356979865,1743516659335,-500.0,0.00049863,120]
[356979866,1743516659345,-500.0,0.00049863,120]
[356979867,1743516659355,-500.0,0.00049863,120]
[356979868,1743516659366,-500.0,0.00049863,120]
[356979869,1743516659377,-500.0,0.00049863,120]
[356979870,1743516659387,-500.0,0.00049863,120]
[356979871,1743516659398,-500.0,0.00049863,120]
[356979872,1743516659408,-500.0,0.00049863,120]
[356979873,1743516659418,-500.0,0.00049863,120]
[356979874,1743516659428,-500.0,0.00049863,120]
[356979875,1743516659438,-488.59422561,0.00049863,120]
[356979876,1743516659448,-602.465563,0.00049863,120]
[356979877,1743516659458,-500.0,0.00049863,120]
[356979878,1743516659468,-500.0,0.00049863,120]
[356979879,1743516659478,-7995.22003571,0.00049863,7]
[356979880,1743516659496,-2212.95954254,0.00049863,7]
[356979881,1743516659508,-12829.37843845,0.00049863,7]
[356979882,1743516659520,-28557.8519833,0.00049863,7]
[356979883,1743516659530,-500.0,0.00049863,120]
[356979884,1743516659539,-500.0,0.00049863,120]
[356979885,1743516659548,-500.0,0.00049863,120]
[356979886,1743516659558,-812.38840954,0.00049863,120]
[356979887,1743516659568,-500.0,0.00049863,120]
[356979888,1743516659577,-732.4,0.00049863,120]
[356979889,1743516659587,-500.0,0.00049863,120]
[356979890,1743516659596,-500.0,0.00049863,120]
[356979891,1743516659606,-500.0,0.00049863,120]
[356979892,1743516659616,-500.0,0.00049863,120]
[356979893,1743516659626,-500.0,0.00049863,120]
[356979894,1743516659635,-2278.58,0.00049863,120]
[356979895,1743516659647,-500.0,0.00049863,120]
[356979896,1743516659657,-500.0,0.00049863,120]
[356979897,1743516659667,-500.0,0.00049863,120]
[356979898,1743516659676,-679.5,0.00049863,120]
[356979899,1743516659686,-1407.08,0.00049863,120]
[356979900,1743516659696,-500.0,0.00049863,120]
[356979901,1743516659706,-500.0,0.00049863,120]
[356979902,1743516659716,-500.0,0.00049863,120]
[356979903,1743516659728,-500.0,0.00049863,120]
[356979904,1743516659739,-500.0,0.00049863,120]
[356979905,1743516659749,-500.0,0.00049863,120]
[356979906,1743516659758,-155.22,0.00049863,120]
[356979907,1743516659769,-500.0,0.00049863,120]
[356979908,1743516659779,-500.0,0.00049863,120]
[356979909,1743516659788,-500.0,0.00049863,120]
[356979910,1743516659799,-500.0,0.00049863,120]
[356979911,1743516659808,-500.0,0.00049863,120]
[356979912,1743516659819,-646.59740517,0.00049863,120]
[356979913,1743516659828,-500.0,0.00049863,120]
[356979914,1743516659838,-500.0,0.00049863,120]
[356979915,1743516659848,-500.0,0.00049863,120]
[356979916,1743516659857,-500.0,0.00049863,120]
[356979917,1743516659866,-500.0,0.00049863,120]
[356979918,1743516659877,-985.69,0.00049863,2]
[356979919,1743516659887,-500.0,0.00049863,120]
[356979920,1743516659901,-500.0,0.00049863,120]
[356979921,1743516659911,-500.0,0.00049863,120]
[356979922,1743516659921,-500.0,0.00049863,120]
[356979923,1743516659931,-500.0,0.00049863,120]
[356979924,1743516659945,-500.0,0.00049863,120]
[356979925,1743516659956,-500.0,0.00049863,120]
[356979926,1743516659966,-500.0,0.00049863,120]
[356979927,1743516659977,-283.35,0.00049863,120]
[356979928,1743516659987,-500.0,0.00049863,120]
[356979929,1743516659997,-500.0,0.00049863,120]
[356979930,1743516660008,-500.0,0.00049863,120]
[356979931,1743516660018,-576.48895124,0.00049863,120]
[356979932,1743516660028,-500.0,0.00049863,120]
[356979933,1743516660038,-500.0,0.00049863,120]
[356979934,1743516660047,-500.0,0.00049863,120]
[356979935,1743516660057,-500.0,0.00049863,120]
[356979936,1743516660068,-500.0,0.00049863,120]
[356979937,1743516660078,-500.0,0.00049863,120]
[356979938,1743516660088,-591.83401879,0.00049863,120]
[356979939,1743516660098,-500.0,0.00049863,120]
[356979940,1743516660108,-500.0,0.00049863,120]
[356979941,1743516660118,-500.0,0.00049863,120]
[356979942,1743516660128,-500.0,0.00049863,120]
[356979943,1743516660137,-1000.0,0.00049863,120]
[356979944,1743516660150,-3302.3,0.00049863,120]
[356979945,1743516660160,-500.0,0.00049863,120]
[356979946,1743516660170,-500.0,0.00049863,120]
[356979947,1743516660180,-500.0,0.00049863,120]
[356979948,1743516660190,-500.0,0.00049863,120]
[356979949,1743516660200,-500.0,0.00049863,120]
[356979950,1743516660210,-500.0,0.00049863,2]
[356979951,1743516660220,-500.0,0.00049863,120]
[356979952,1743516660231,-500.0,0.00049863,120]
[356979953,1743516660241,-500.0,0.00049863,120]
[356979954,1743516660251,-500.0,0.00049863,120]
[356979955,1743516660261,-1600.81,0.00049863,120]
[356979956,1743516660271,-375.49818928,0.00049863,120]
[356979957,1743516660281,-500.0,0.00049863,120]
[356979958,1743516660291,-500.0,0.00049863,2]
[356979959,1743516660300,-409.82519721,0.00049863,120]
[356979960,1743516660310,-206.94,0.00049863,120]
[356979961,1743516660321,-260.37135023,0.00049863,120]
[356979962,1743516660331,-500.0,0.00049863,120]
[356979963,1743516660340,-500.0,0.00049863,120]
[356979964,1743516660351,-31538.57449524,0.0004987,5]
[356979965,1743516660365,-504.76511919,0.0004987,5]
[356979966,1743516661431,-830.5297,0.0004987,5]
[356979967,1743516661444,-7926.0485835,0.0004987,5]
[356979968,1743516661522,-12783.04998901,0.0004987,5]
[356979969,1743516661625,-2546.1160388,0.0004987,5]
[356979970,1743516661636,-529.35001066,0.0004987,5]
[356979994,1743517508226,175909.47639866,0.00015,2]
[356979995,1743517508253,763.53,0.00015,2]
[356979996,1743517536655,1004.97549643,8e-05,2]
[356980000,1743517590251,-150.0,0.00015,2]
[356980002,1743517693182,1026.06357931,9e-05,2]
[356980003,1743517693211,148.98603771,9e-05,2]
[356980010,1743517727941,545.85391084,0.00034138,120]
[356980015,1743517802152,350.0,0.00014962,12]
[356980025,1743517832420,-300.0,0.00014925,2]
[356980026,1743517832435,-566.35,0.00014925,2]
[356980027,1743517832445,-751.18,0.0001499,2]
[356980028,1743517832454,-751.18,0.0001499,2]
[356980029,1743517832464,-271.65174482,0.0001499,2]
[356980030,1743517832473,-4481.03256354,0.00015,2]
[356980031,1743517832687,-33074.42778662,0.00015,2]
[356980032,1743517832698,-3525.62211806,0.00015,2]
[356980033,1743517832770,-1717.4001764,0.00015,2]
[356980034,1743517832781,-294.84302077,0.00015,2]
[356980035,1743517832793,-2487.71584048,0.00015,2]
[356980036,1743517832804,-1409.18840479,0.00015,2]
[356980037,1743517832816,-2487.87541445,0.00015,2]
[356980038,1743517832828,-291.06,0.00015,2]
[356980041,1743517838231,-41451.30197976,0.00015,2]
[356980042,1743517838314,-626.84857845,0.00015,2]
[356980043,1743517838325,-4962.71503646,0.00015,2]
[356980044,1743517838341,-295.342425,0.00015,2]
[356980045,1743517838930,-494.116084,0.00015,2]
[356980049,1743517840505,-255.17549218,0.0001489,2]
[356980050,1743517840515,-1029.92288219,0.00015,2]
[356980051,1743517842580,-0.0174017,0.00015,2]
[356980052,1743517842597,-82759.49999999,0.00015,2]
[356980053,1743517842608,-395.29203542,0.00015,2]
[356980054,1743517842619,-2729.3253285,0.00015,2]
[356980067,1743517843396,-988.232168,0.00015,2]
[356980068,1743517843484,-3047.05310089,0.00015,2]
[356980082,1743517846235,-255.17549216,0.00014895,2]
[356980083,1743517846245,-222253.84305124,0.00015,2]
[356980085,1743517846400,-2081.31454498,0.00015,2]
[356980086,1743517846499,-299.63247524,0.00015,2]
[356980087,1743517846510,-3320.2901317,0.00015,2]
[356980088,1743517846525,-16826.62134267,0.00015,2]
[356980091,1743517936645,-162.006918,0.000149,2]
[356980093,1743517958646,-93.16857416,0.000149,2]
[356980094,1743517958668,-206.83142584,0.000149,2]
[356980095,1743517966773,-257.53131285,0.000149,2]
[356980096,1743518007649,-218.36395758,0.00014899,2]
[356980102,1743518118597,-150.02065061,0.00014899,2]
[356980105,1743518161962,350.0,0.00014944,12]
[356980108,1743518224217,151.0,0.00034137,30]
[356980109,1743518280945,350.0,0.00014895,12]
[356980110,1743518310075,467.212,0.000147,2]
[356980111,1743518310121,48.15108043,0.000147,2]
[356980112,1743518310151,132.88191957,0.000147,2]
[356980113,1743518338172,145.1164918,0.000148,2]
[356980114,1743518338197,543.19125951,0.000148,2]
[356980116,1743518488039,-300.0,0.00014899,2]
[356980117,1743518488064,-3596.78402687,0.000149,2]
[356980118,1743518488089,-2928.52388222,0.000149,2]
[356980119,1743518488110,-171.47866795,0.000149,2]
[356980120,1743518488133,-500.0,0.00014973,2]
[356980121,1743518488156,-896.33583795,0.0001499,2]
[356980122,1743518488179,-390.7773446,0.00014999,2]
[356980123,1743518488201,-197.06838826,0.00014999,2]
[356980124,1743518488225,-500.0,0.00014999,2]
[356980125,1743518488249,-500.0,0.00014999,2]
[356980126,1743518488272,-500.0,0.00014999,2]
[356980127,1743518488294,-199.96032212,0.00014999,2]
[356980128,1743518488315,-188.88448023,0.00014999,2]
[356980129,1743518488340,-150.0,0.00014999,2]
[356980130,1743518488366,-682363.1870498,0.00015,2]
[356980131,1743518574204,-277.294372,0.00014924,2]
[356980132,1743518574233,-150.0,0.00014999,2]
[356980133,1743518574264,-78415.88829263,0.00015,2]
[356980134,1743518574295,-26856.81733537,0.00015,2]
[356980135,1743518580593,-36728.15120947,0.00015,2]
[356980137,1743518643672,-150.0,0.0001639,12]
[356980138,1743518650857,-153.19309302,0.0001639,12]
[356980140,1743518669412,-46.80690698,0.0001639,12]
[356980141,1743518669436,-108.61918602,0.000165,12]
[356980142,1743518685491,-158.58815725,0.000165,12]
[356980143,1743518731919,-82.79265673,0.000165,12]
[356980144,1743518732087,-95.26699385,0.00018017,12]
[356980146,1743518743203,1695.88,0.00025,90]
[356980160,1743519031503,-254.73300615,0.00018017,12]
[356980161,1743519031517,-350.0,0.00018958,12]
[356980162,1743519031527,-350.0,0.00019819,12]
[356980163,1743519031537,-795.26699385,0.000199,2]
[356980164,1743519031549,-1285.09837437,0.0002,2]
[356980165,1743519031559,-300.0,0.00020937,2]
[356980166,1743519031568,-2599.01700125,0.00020938,2]
[356980167,1743519031583,-8324.83073183,0.00020938,2]
[356980168,1743519031594,-275.90445254,0.00020938,2]
[356980169,1743519031606,-2405.61759226,0.00020938,2]
[356980170,1743519031616,-243.04569645,0.00023288,2]
[356980171,1743519031805,-256.95430355,0.00023288,2]
[356980172,1743519031815,-346.0,0.00025425,2]
[356980173,1743519031825,-553.08,0.00025425,2]
[356980174,1743519031835,-157.35,0.00026849,2]
[356980175,1743519031844,-157.25,0.00026849,2]
[356980176,1743519031854,-31.43864932,0.00027,2]
[356980187,1743519037702,-95.86248777,0.00027,2]
[356980206,1743519039637,-122.69886291,0.00027,2]
[356980207,1743519039647,-300.0,0.00029,2]
[356980208,1743519039658,-949.52,0.00029,2]
[356980209,1743519039668,-350.0,0.00031,2]
[356980210,1743519039678,-157.35,0.00032646,2]
[356980211,1743519039687,-400.0,0.00033,2]
[356980212,1743519039698,-150.0,0.00034083,2]
[356980213,1743519039707,-500.0,0.00034158,30]
[356980214,1743519039718,-8894.53999876,0.00034158,30]
[356980215,1743519039727,-426.31,0.00034328,2]
[356980216,1743519039736,-306.86326173,0.00034825,2]
[356980217,1743519039746,-165.12,0.00035,2]
[356980218,1743519039756,-450.0,0.00035,2]
[356980219,1743519039765,-339.76,0.00035108,120]
[356980220,1743519039775,-1000.0,0.00035266,2]
[356980221,1743519039784,-150.0,0.00035453,2]
[356980222,1743519039793,-150.75,0.00035616,2]
[356980223,1743519039804,-198.57,0.000358,2]
[356980224,1743519039814,-15417.75,0.00036165,2]
[356980225,1743519039823,-684.27,0.00036327,2]
[356980226,1743519039833,-159.01,0.00036523,2]
[356980227,1743519039844,-15077.80359233,0.000366,2]
[356980228,1743519039854,-156.53,0.00036639,120]
[356980229,1743519039863,-150.0,0.00036823,2]
[356980230,1743519039873,-500.0,0.00036869,15]
[356980231,1743519039883,-501.39352934,0.00036869,15]
[356980232,1743519039892,-237.14,0.0003687,120]
[356980233,1743519039905,-500.0,0.00037,2]
[356980234,1743519039915,-200.0,0.00037618,120]
[356980235,1743519039926,-250.0,0.00038088,2]
[356980236,1743519039935,-156.02471048,0.00038192,2]
[356980237,1743519039945,-4807.18,0.0003822,2]
[356980238,1743519039955,-23900.0,0.0003839,2]
[356980239,1743519039965,-274.32,0.00038406,2]
[356980240,1743519039975,-157.35,0.00038443,2]
[356980241,1743519039986,-467.212,0.00038525,52]
[356980242,1743519039995,-684.27,0.00038591,2]
[356980243,1743519040005,-550.0,0.00039,2]
[356980244,1743519040015,-150.75,0.00039178,2]
[356980245,1743519040025,-339.76,0.00039496,120]
[356980246,1743519040035,-150.63,0.00039527,2]
[356980247,1743519040047,-1000.0,0.00039674,2]
[356980248,1743519040058,-35574.57001698,0.0003988,2]
[356980249,1743519040071,-1326.9,0.0003988,2]
[356980250,1743519040083,-153167.36541281,0.0003988,2]
[356980251,1743519040093,-580.76295975,0.000399,50]
[356980252,1743519040103,-2733.46256891,0.0004,3]
[356980253,1743519040113,-783.26,0.00040006,2]
[356980254,1743519040123,-1027.47,0.00040006,2]
[356980255,1743519040132,-783.26,0.00040006,2]
[356980256,1743519040142,-715.86,0.00040006,2]
[356980257,1743519040156,-455.01,0.00040143,2]
[356980258,1743519040165,-153.74,0.00040143,2]
[356980259,1743519040175,-751.36,0.00040814,120]
[356980260,1743519040185,-684.27,0.00040855,2]
[356980261,1743519040194,-150.63,0.00040896,2]
[356980262,1743519040204,-600.0,0.00041,2]
[356980264,1743519040214,-172.0,0.00041,14]
[356980265,1743519040224,-156.53,0.00041117,120]
[356980266,1743519040233,-2000.0,0.000425,2]
[356980267,1743519040243,-150.75,0.0004274,2]
[356980268,1743519040254,-650.0,0.00043,2]
[356980269,1743519040264,-684.27,0.00043119,2]
[356980270,1743519040274,-2536.13797712,0.00043438,3]
[356980271,1743519040284,-1283.0,0.00043448,2]
[356980272,1743519040293,-643.0,0.00043448,2]
[356980273,1743519040303,-2040.0,0.00043448,2]
[356980274,1743519040313,-1248.429,0.00043448,2]
[356980275,1743519040322,-789.0,0.00043448,2]
[356980276,1743519040332,-1275.0,0.00043448,2]
[356980277,1743519040341,-2715.924,0.00043448,2]
[356980278,1743519040352,-336.176,0.00043448,2]
[356980279,1743519040361,-1433.0,0.00043448,2]
[356980280,1743519040371,-908.0,0.00043448,2]
[356980281,1743519040381,-3949.0,0.00043448,2]
[356980282,1743519040391,-151.0,0.00043448,2]
[356980283,1743519040402,-1017.0,0.00043448,2]
[356980284,1743519040411,-339.76,0.00043885,120]
[356980285,1743519040422,-1000.0,0.00044082,2]
[356980286,1743519040431,-157.35,0.00044239,2]
[356980287,1743519040441,-3108.23956021,0.000449,15]
[356980288,1743519040451,-607.42657511,0.000449,17]
[356980289,1743519040460,-11412.620897,0.0004499,3]
[356980290,1743519040470,-957.0,0.00045,7]
[356980291,1743519040480,-64296.37232323,0.00045,2]
[356980292,1743519040489,-2155.93286107,0.00045,2]
[356980293,1743519040499,-187.77242867,0.00045,30]
[356980294,1743519040509,-700.0,0.00045,2]
[356980295,1743519040523,-500.0,0.0004515,120]
[356980296,1743519040532,-2000.0,0.000452,2]
[356980297,1743519040542,-684.27,0.00045382,2]
[356980298,1743519040553,-1268.06898856,0.00045446,3]
[356980299,1743519040563,-3108.23956018,0.00045456,15]
[356980300,1743519040572,-426.31,0.00045561,2]
[356980301,1743519040582,-156.53,0.00045596,120]
[356980302,1743519040592,-751.36,0.00045916,120]
[356980303,1743519040602,-2536.13797712,0.00045958,3]
[356980304,1743519040612,-13621.11371192,0.00045968,2]
[356980305,1743519040622,-3108.23956018,0.00046011,15]
[356980306,1743519040632,-649.43875687,0.00046033,120]
[356980307,1743519040641,-150.75,0.00046301,2]
[356980308,1743519040651,-579.53760562,0.00046387,2]
[356980309,1743519040661,-2536.13797712,0.00046438,3]
[356980310,1743519040670,-1283.0,0.00046448,2]
[356980311,1743519040680,-643.0,0.00046448,2]
[356980312,1743519040689,-2035.592,0.00046448,2]
[356980313,1743519040698,-789.0,0.00046448,2]
[356980314,1743519040708,-1275.0,0.00046448,2]
[356980315,1743519040717,-1083.533,0.00046448,2]
[356980316,1743519040726,-908.0,0.00046448,2]
[356980317,1743519040736,-3949.0,0.00046448,2]
[356980318,1743519040745,-151.0,0.00046448,2]
[356980319,1743519040755,-380.056,0.00046448,2]
[356980320,1743519040765,-3108.23956018,0.00046567,15]
[356980321,1743519040775,-1268.06898856,0.00046922,3]
[356980322,1743519040784,-500.0,0.00046932,120]
[356980323,1743519040793,-750.0,0.00047,2]
[356980324,1743519040803,-3108.23956018,0.00047122,15]
[356980325,1743519040813,-274.0,0.00047205,2]
[356980326,1743519040823,-1268.06898856,0.00047252,3]
[356980327,1743519040833,-3473.41016353,0.00047262,120]
[356980328,1743519040843,-322.34586125,0.00047262,120]
[356980329,1743519040853,-164.32,0.00047433,2]
[356980330,1743519040863,-5225.60980294,0.000476,2]
[356980331,1743519040873,-684.27,0.00047646,2]
[356980332,1743519040888,-1268.06898856,0.00047668,3]
[356980333,1743519040898,-3108.23956018,0.00047678,15]
[356980334,1743519040910,-355.78,0.00047781,30]
[356980335,1743519040920,-153.61,0.00047781,30]
[356980336,1743519040930,-221.11,0.00047781,30]
[356980337,1743519040940,-693.98,0.00047781,30]
[356980338,1743519040950,-194.85,0.00047781,30]
[356980339,1743519040960,-1073.0,0.000479,2]
[356980340,1743519040970,-500.0,0.00047932,120]
[356980341,1743519040979,-1898.0,0.000481,120]
[356980342,1743519040989,-395.189,0.00048178,82]
[356980343,1743519040999,-3108.23956018,0.00048233,15]
[356980344,1743519041009,-339.76,0.00048273,120]
[356980345,1743519041019,-348.4279116,0.00048367,4]
[356980346,1743519041029,-1000.0,0.000484,14]
[356980347,1743519041039,-1000.0,0.00048491,2]
[356980348,1743519041048,-150.0,0.00048542,7]
[356980349,1743519041058,-1268.06898856,0.00048593,4]
[356980350,1743519041068,-347.21,0.00048603,30]
[356980351,1743519041078,-347.21,0.00048603,30]
[356980352,1743519041088,-150.0,0.00048613,7]
[356980353,1743519041097,-150.0,0.00048628,7]
[356980354,1743519041107,-150.0,0.00048676,7]
[356980355,1743519041117,-150.0,0.0004868,7]
[356980356,1743519041127,-150.0,0.00048712,7]
[356980357,1743519041136,-150.0,0.00048749,7]
[356980358,1743519041146,-150.0,0.0004877,7]